bitfinex-derivatives/quotes_BNBF0:USTF0_20250424
["timestamp","ask_amount","ask_price","bid_price","bid_amount"]
[1745467031998,1.25418113,605.17,603.48,0.5798172]
[1745467032203,1.25418113,605.17,603.49,0.5798172]
[1745467032403,1.25418113,605.17,603.5,0.5798172]
[1745467032603,1.25418113,605.17,603.51,0.5798172]
[1745467032806,1.25418113,605.17,603.52,0.5798172]
[1745467033105,1.25418113,605.17,603.53,0.5798172]
[1745467033305,1.25418113,605.17,603.54,0.5798172]
[1745467033505,1.25418113,605.17,603.55,0.5798172]
[1745467033702,1.25418113,605.12,603.56,0.5798172]
[1745467033907,1.25418113,605.12,603.57,0.5798172]
[1745467034102,1.25418113,605.12,603.58,0.5798172]
[1745467034405,1.25418113,605.12,603.59,0.5798172]
[1745467034606,1.25418113,605.12,603.6,0.5798172]
[1745467034799,1.25418113,605.12,603.61,0.5798172]
[1745467035107,1.25418113,605.12,603.62,0.57993366]
[1745467035307,0.28809855,605.11,603.63,0.57993366]
[1745467035507,0.28809855,605.11,603.64,0.57993366]
[1745467035707,0.28809855,605.11,603.65,0.57993366]
[1745467035911,0.28809855,605.11,603.42,2.664]
[1745467036110,0.28809855,605.11,603.65,1.503]
[1745467036310,0.28809855,605.11,603.66,0.57999054]
[1745467036511,0.28809855,605.11,603.65,1.503]
[1745467036711,0.28809855,605.11,603.66,0.57999316]
[1745467036911,0.28809855,605.11,603.65,2.783]
[1745467040113,1.25418113,605.39,603.65,2.783]
[1745467041308,0.28806159,605.38,603.65,2.783]
[1745467041513,1.25418113,605.34,603.65,2.783]
[1745467043414,1.25418113,605.34,603.66,0.57973272]
[1745467043607,1.25418113,605.34,603.65,2.783]
[1745467043808,2.13384984,606.15,603.65,2.783]
[1745467043809,1.25418113,605.53,603.65,2.783]
[1745467044013,1.25418113,605.53,603.66,0.57973896]
[1745467044210,1.25418113,605.53,603.65,2.783]
[1745467044410,0.28802582,605.52,603.65,2.783]
[1745467046119,1.25418113,605.53,603.66,0.57976011]
[1745467046315,1.25418113,605.53,603.65,2.783]
[1745467046915,1.25418113,605.5,603.65,2.783]
[1745467047315,0.2880294,605.49,603.65,2.783]
[1745467049118,1.25418113,605.5,603.65,2.783]
[1745467049319,0.2880294,605.48,603.66,0.5797281]
[1745467049519,0.2880294,605.48,603.65,2.783]
[1745467049720,1.25418113,605.15,603.65,2.783]
[1745467050114,1.25418113,605.15,603.65,4.013]
[1745467052518,1.25418113,605.14,603.65,4.013]
[1745467053319,0.28809139,605.13,603.65,4.013]
[1745467055123,1.25418113,605.14,603.65,4.013]
[1745467055424,1.25418113,604.95,603.65,4.013]
[1745467056322,0.28810451,604.94,603.65,4.013]
[1745467056622,0.28810451,604.94,603.66,0.57981837]
[1745467056819,0.28810451,604.94,603.67,0.57981837]
[1745467057119,0.28810451,604.94,603.68,0.57981837]
[1745467057419,0.28810451,604.94,603.69,0.57981837]
[1745467057618,0.28810451,604.94,603.7,0.57981837]
[1745467057821,0.28810451,604.94,603.71,0.57981837]
[1745467058018,0.28810451,604.94,603.72,0.57981837]
[1745467058221,1.25418113,605.74,603.73,0.57981837]
[1745467058421,1.25418113,605.74,603.65,2.733]
[1745467058617,1.25418113,605.74,603.66,0.58000329]
[1745467058816,1.25418113,605.74,603.67,0.58000329]
[1745467059020,1.25418113,605.74,603.68,0.58000329]
[1745467059221,0.28800079,605.73,603.69,0.58000329]
[1745467059423,0.28800079,605.73,603.7,0.58000329]
[1745467059724,0.28800079,605.73,603.71,0.58000329]
[1745467060024,0.28800079,605.73,603.72,0.58000329]
[1745467060223,1.25418113,605.7,603.73,0.58000329]
[1745467060424,1.25418113,605.7,603.74,0.58000329]
[1745467060718,1.25418113,605.7,603.75,0.58000329]
[1745467060916,1.25418113,605.7,603.76,0.58000329]
[1745467061117,1.25418113,605.7,603.77,0.58000329]
[1745467061321,1.25418113,605.7,603.78,0.58000329]
[1745467061518,1.25418113,605.7,603.79,0.58000329]
[1745467061723,1.25418113,605.7,603.68,1.654]
[1745467061924,1.25418113,605.7,603.69,0.58030302]
[1745467062122,1.25418113,605.7,603.7,0.58030302]
[1745467062320,1.25418113,605.7,603.71,0.58030302]
[1745467062321,0.28798173,605.69,603.71,0.58030302]
[1745467062526,0.28798173,605.69,603.72,0.58030302]
[1745467062725,0.28798173,605.69,603.73,0.58030302]
[1745467062925,0.28798173,605.69,603.74,0.58030302]
[1745467063125,0.28798173,605.69,603.75,0.58030302]
[1745467063325,0.28798173,605.69,603.68,1.654]
[1745467063525,0.28798173,605.69,603.69,0.58055342]
[1745467063727,0.28798173,605.69,603.7,0.58055342]
[1745467063927,0.28798173,605.69,603.71,0.58055342]
[1745467064128,0.28798173,605.69,603.72,0.58055342]
[1745467064325,0.28798173,605.69,603.68,1.654]
[1745467066630,1.25418113,604.97,603.68,1.654]
[1745467068332,0.28811048,604.96,603.68,1.654]
[1745467071934,0.28811048,604.96,603.68,2.786]
[1745467072739,0.28811048,604.96,603.69,0.58097293]
[1745467072941,0.28811048,604.96,603.68,4.245]
[1745467073144,0.28811048,604.96,603.69,0.58099759]
[1745467073343,0.28811048,604.96,603.7,0.58103592]
[1745467073539,0.28811048,604.96,603.68,4.245]
[1745467073842,0.28811048,604.96,603.69,0.58104244]
[1745467074044,0.28811048,604.96,603.68,4.245]
[1745467075147,0.28811048,604.96,603.69,0.58115833]
[1745467075344,0.28811048,604.96,603.68,4.245]
[1745467075547,0.28811048,604.96,603.69,0.58115949]
[1745467075740,0.28811048,604.96,603.68,2.591]
[1745467075940,0.28811048,604.96,603.69,0.58116037]
[1745467076142,1.25418113,605.11,603.68,2.591]
[1745467076339,1.25418113,605.11,603.69,0.581161]
[1745467076546,1.25418113,605.11,603.68,2.591]
[1745467077346,0.28809378,605.1,603.68,2.591]
[1745467077841,0.28809378,605.1,603.69,0.58116093]
[1745467078046,0.28809378,605.1,603.68,2.591]
[1745467078246,0.28809378,605.1,603.7,1.331]
[1745467078439,1.25418113,605.0,603.7,1.331]
[1745467079547,0.28810451,604.99,603.7,1.331]
[1745467081248,0.28810451,604.99,603.71,1.685]
[1745467081949,1.25418113,604.96,603.71,1.685]
[1745467083348,0.28811763,604.95,603.71,1.685]
[1745467085051,1.25418113,605.78,603.71,1.685]
[1745467086352,0.28801986,605.77,603.71,1.685]
[1745467088052,1.25418113,605.85,603.71,1.685]
[1745467089253,0.28801867,605.84,603.71,1.685]
[1745467089855,1.25418113,605.83,603.71,1.685]
[1745467092362,1.25418113,605.44,603.71,1.685]
[1745467094361,0.28806755,605.43,603.71,1.685]
[1745467094758,1.54224868,605.43,603.71,1.685]
[1745467097058,1.25418113,605.43,603.71,1.685]
[1745467097964,1.25418113,605.52,603.71,1.685]
[1745467098364,0.28805205,605.42,603.71,1.685]
[1745467098670,1.25418113,605.52,603.72,1.16]
[1745467100065,0.28802821,605.51,603.72,1.16]
[1745467100567,1.25418113,605.25,603.72,1.16]
[1745467102069,1.25418113,605.25,603.73,1.639]
[1745467102968,1.25418113,605.04,603.73,1.639]
[1745467105169,1.25418113,604.9,603.73,1.639]
[1745467108867,0.28808185,604.91,603.73,1.639]
[1745467109171,1.25418113,605.03,603.73,1.639]
[1745467110072,1.25418113,605.03,603.74,0.58069787]
[1745467110272,1.25418113,605.03,603.75,0.58069787]
[1745467110573,0.28805086,605.02,603.76,0.58069787]
[1745467110773,0.28805086,605.02,603.77,0.58069787]
[1745467110974,0.28805086,605.02,603.78,0.58069787]
[1745467111276,0.28805086,605.02,603.79,0.58069787]
[1745467111477,0.28805086,605.02,603.8,0.58069787]
[1745467111676,0.28805086,605.02,603.81,0.58069787]
[1745467111875,0.28805086,605.02,603.82,0.58069787]
[1745467112074,1.25418113,605.03,603.83,0.58069787]
[1745467112370,1.25418113,605.03,603.84,0.58069787]
[1745467112676,1.25418113,605.15,603.73,1.639]
[1745467112876,1.25418113,605.15,603.74,0.58041909]
[1745467113171,1.25418113,605.15,603.75,0.58041909]
[1745467113378,0.28803655,605.14,603.76,0.58041909]
[1745467113679,0.28803655,605.14,603.77,0.58041909]
[1745467113876,0.28803655,605.14,603.78,0.58041909]
[1745467114076,0.28803655,605.14,603.79,0.58041909]
[1745467114375,0.28803655,605.14,603.8,0.58041909]
[1745467114675,0.28803655,605.14,603.81,0.58041909]
[1745467114978,1.25418113,605.11,603.73,1.639]
[1745467115176,1.25418113,605.11,603.74,0.58024044]
[1745467115371,0.28804251,605.1,603.75,0.58024044]
[1745467115676,0.28804251,605.1,603.76,0.58024044]
[1745467115877,0.28804251,605.1,603.77,0.58024044]
[1745467116076,0.28804251,605.1,603.78,0.58024044]
[1745467116277,0.28804251,605.1,603.79,0.58024044]
[1745467116477,0.28804251,605.1,603.8,0.58024044]
[1745467116678,0.28804251,605.1,603.81,0.58024044]
[1745467116877,0.28804251,605.1,603.82,0.58024044]
[1745467117078,0.28804251,605.1,603.73,1.639]
[1745467117379,0.28804251,605.1,603.74,0.5801257]
[1745467117678,0.28804251,605.1,603.75,0.5801257]
[1745467117878,0.28804251,605.1,603.73,1.639]
[1745467118078,1.25418113,605.13,603.73,1.639]
[1745467118279,0.28805682,605.09,603.73,1.639]
[1745467118780,0.28805682,605.09,603.74,1.691]
[1745467121081,1.25418113,605.51,603.74,1.691]
[1745467122281,0.28800079,605.5,603.74,1.691]
[1745467122674,0.28800079,605.5,603.75,1.164]
[1745467123074,0.28800079,605.5,603.76,1.495]
[1745467123580,0.28800079,605.5,603.77,1.271]
[1745467124079,1.25418113,605.78,603.77,1.271]
[1745467124380,0.28796028,605.49,603.77,1.271]
[1745467124679,1.25418113,605.78,603.77,1.271]
[1745467124876,1.25418113,605.6,603.77,1.271]
[1745467125981,0.28798173,605.59,603.77,1.271]
[1745467129485,1.25418113,605.56,603.77,1.271]
[1745467130378,0.28800079,605.55,603.77,1.271]
[1745467131487,1.25418113,605.5,603.77,1.271]
[1745467133389,1.25418113,605.75,603.77,1.271]
[1745467134290,0.28796862,605.74,603.77,1.271]
[1745467135390,1.25418113,605.72,603.77,1.271]
[1745467136493,0.28796505,605.71,603.77,1.271]
[1745467137690,1.25418113,605.61,603.77,1.271]
[1745467138892,1.25418113,605.61,603.77,2.846]
[1745467140387,0.28797815,605.6,603.77,2.846]
[1745467141294,1.25418113,605.48,603.77,2.846]
[1745467143296,0.28800079,605.47,603.77,2.846]
[1745467143796,1.25418113,604.74,603.77,2.846]
[1745467146093,1.25418113,604.74,603.78,0.5799058]
[1745467146298,1.25418113,605.0,603.77,2.846]
[1745467148799,1.25418113,605.03,603.77,2.846]
[1745467149101,1.25418113,605.03,603.77,4.102]
[1745467149299,0.28804966,605.02,603.77,4.102]
[1745467151102,1.25418113,605.08,603.77,4.102]
[1745467152401,0.28805801,605.07,603.77,4.102]
[1745467152603,0.28805801,605.07,603.78,0.58036198]
[1745467152803,0.28805801,605.07,603.77,4.102]
[1745467153000,0.28805801,605.07,603.77,2.831]
[1745467153399,0.28805801,605.07,603.78,0.58047304]
[1745467153602,0.28805801,605.07,603.77,2.831]
[1745467154106,1.25418113,605.23,603.77,2.831]
[1745467154404,1.25418113,605.23,603.78,0.58059737]
[1745467154605,1.25418113,605.23,603.79,0.58059737]
[1745467154806,1.25418113,605.57,603.8,0.58059737]
[1745467155106,1.25418113,605.57,603.81,0.58059365]
[1745467155308,1.25418113,605.57,603.77,2.831]
[1745467155509,0.28799364,605.56,603.78,0.58070196]
[1745467155705,0.28799364,605.56,603.79,0.58070196]
[1745467155905,0.28799364,605.56,603.8,0.58070196]
[1745467156108,0.28799364,605.56,603.81,0.58070196]
[1745467156406,0.28799364,605.56,603.82,0.58070196]
[1745467156706,0.28799364,605.56,603.83,0.58070196]
[1745467157006,0.28799364,605.56,603.84,0.58070196]
[1745467157210,1.25418113,605.76,603.84,0.58070196]
[1745467158415,0.28794718,605.75,603.84,0.58070196]
[1745467159809,0.28794718,605.75,603.85,0.58070196]
[1745467160008,0.28794718,605.75,603.86,0.58070196]
[1745467160207,1.25418113,605.77,603.87,0.58070196]
[1745467160404,1.25418113,605.77,603.88,0.58104352]
[1745467160607,1.25418113,605.77,603.89,0.58104352]
[1745467160809,1.25418113,605.77,603.9,0.58104352]
[1745467161105,1.25418113,605.77,603.91,0.58104352]
[1745467161308,1.25418113,605.77,603.92,0.58104352]
[1745467161505,0.28792693,605.76,603.93,0.58104352]
[1745467161705,0.28792693,605.76,603.83,1.169]
[1745467161906,0.28792693,605.76,603.84,0.58110854]
[1745467162213,1.25418113,605.36,603.85,0.58110854]
[1745467162408,1.25418113,605.36,603.86,0.58110854]
[1745467162606,1.25418113,605.36,603.87,0.58110854]
[1745467162909,1.25418113,605.36,603.88,0.58110854]
[1745467163210,1.25418113,605.36,603.89,0.58110854]
[1745467163411,1.25418113,605.36,603.9,0.58110854]
[1745467163711,1.25418113,605.36,603.91,0.58110854]
[1745467163913,1.25418113,605.36,603.92,0.58109151]
[1745467164112,1.25418113,605.36,603.93,0.58109151]
[1745467164312,1.25418113,605.36,603.83,1.169]
[1745467164516,0.28795671,605.35,603.84,0.5810197]
[1745467164815,0.28795671,605.35,603.85,0.5810197]
[1745467165017,1.25418113,605.02,603.86,0.5810197]
[1745467165215,1.25418113,605.02,603.87,0.5810197]
[1745467165414,1.25418113,605.02,603.88,0.5810197]
[1745467165613,1.25418113,605.02,603.89,0.5810197]
[1745467165811,1.25418113,605.02,603.9,0.5810197]
[1745467166011,1.25418113,605.02,603.91,0.5810197]
[1745467166216,1.25418113,605.02,603.92,0.5810197]
[1745467166515,1.25418113,605.02,603.93,0.5810197]
[1745467166716,1.25418113,605.02,603.94,0.5810197]
[1745467166917,1.25418113,605.02,603.95,0.5810197]
[1745467167118,1.25418113,605.02,603.96,0.5810197]
[1745467167418,1.25418113,605.2,603.97,0.5810197]
[1745467167616,1.25418113,605.2,603.98,0.5810197]
[1745467167818,1.25418113,605.2,603.99,0.58061793]
[1745467168018,1.25418113,605.2,604.0,0.58061793]
[1745467168218,1.25418113,605.2,604.01,0.58061793]
[1745467168417,1.25418113,605.2,604.02,0.58061793]
[1745467168619,1.25418113,605.2,603.83,1.169]
[1745467168819,1.25418113,605.2,603.84,0.58039577]
[1745467169014,1.25418113,605.2,603.85,0.58039577]
[1745467169215,1.25418113,605.2,603.86,0.58039577]
[1745467169418,1.25418113,605.2,603.87,0.58039577]
[1745467169619,0.28795671,605.35,603.83,1.169]
[1745467169620,1.25418113,605.25,603.88,0.58019725]
[1745467169920,1.25418113,605.25,603.89,1.95919725]
[1745467170117,1.25418113,605.25,603.9,0.58019725]
[1745467170318,1.25418113,605.25,603.91,0.58019725]
[1745467170519,1.25418113,605.25,603.92,0.58019725]
[1745467170718,1.25418113,605.25,603.93,0.58019725]
[1745467170920,1.25418113,605.25,603.94,0.58019725]
[1745467171219,1.25418113,605.25,603.95,0.58019725]
[1745467171421,1.25418113,605.25,603.96,0.58019725]
[1745467171719,1.25418113,605.25,603.97,0.58019725]
[1745467171917,0.28795671,605.35,603.98,0.58019725]
[1745467172223,1.25418113,605.57,603.99,0.58019725]
[1745467172418,1.25418113,605.57,604.0,0.58019725]
[1745467172616,1.25418113,605.57,604.01,0.58019725]
[1745467172919,1.25418113,605.57,603.89,1.379]
[1745467173117,1.25418113,605.57,603.9,0.57966442]
[1745467173317,0.28790668,605.56,603.91,0.57953654]
[1745467173519,0.28790668,605.56,603.92,0.57953654]
[1745467173719,0.28790668,605.56,603.93,0.57953654]
[1745467173919,0.28790668,605.56,603.94,0.57953654]
[1745467174118,0.28790668,605.56,603.95,0.57953654]
[1745467174319,0.28790668,605.56,603.96,0.57953654]
[1745467174521,0.28790668,605.56,603.97,0.57953654]
[1745467174725,0.28790668,605.56,603.98,0.57953654]
[1745467174923,0.28790668,605.56,603.99,0.57953654]
[1745467175220,1.25418113,605.57,604.0,0.57953654]
[1745467175424,1.25418113,605.57,603.89,1.379]
[1745467175625,1.25418113,605.65,603.9,0.57925115]
[1745467175824,1.25418113,605.65,603.91,0.57925115]
[1745467176025,1.25418113,605.65,603.92,0.57925115]
[1745467176222,1.25418113,605.65,603.93,0.57925115]
[1745467176422,0.28789358,605.64,603.94,0.57925115]
[1745467176619,0.28789358,605.64,603.95,0.57925115]
[1745467176819,0.28789358,605.64,603.96,0.57925115]
[1745467177120,0.28789358,605.64,603.97,0.57925115]
[1745467177320,0.28789358,605.64,603.98,0.57925115]
[1745467177524,0.28789358,605.64,603.89,1.379]
[1745467177718,0.28789358,605.64,603.9,0.57903476]
[1745467177924,0.28789358,605.64,603.91,0.57903476]
[1745467178125,0.28789358,605.64,603.92,0.57903476]
[1745467178325,0.28789358,605.64,603.93,0.57903476]
[1745467178527,0.28789358,605.64,603.94,0.57903476]
[1745467178727,0.28789358,605.64,603.95,0.57903476]
[1745467178927,0.28789358,605.64,603.96,0.57903476]
[1745467179129,0.28789358,605.64,603.97,0.57903476]
[1745467179427,0.28789358,605.64,603.92,1.652]
[1745467179629,0.28789358,605.64,603.93,0.57893444]
[1745467179929,0.28789358,605.64,603.94,0.57893444]
[1745467180228,0.28789358,605.64,603.95,0.57893444]
[1745467180528,0.28789358,605.64,603.96,0.57893444]
[1745467180824,0.28789358,605.64,603.92,1.652]
[1745467181028,0.28789358,605.64,603.93,0.57888858]
[1745467181230,0.28789358,605.64,603.94,0.57888858]
[1745467181429,0.28789358,605.64,603.95,0.57888858]
[1745467181630,0.28789358,605.64,603.96,0.57888858]
[1745467181828,0.28789358,605.64,603.92,1.652]
[1745467182026,0.28789358,605.64,603.93,0.57884468]
[1745467182226,0.28789358,605.64,603.94,0.57884468]
[1745467182430,0.28789358,605.64,603.95,0.57884468]
[1745467182627,0.28789358,605.64,603.96,0.57884468]
[1745467182929,0.28789358,605.64,603.92,1.652]
[1745467183131,0.28789358,605.64,603.93,0.57881057]
[1745467183431,0.28789358,605.64,603.94,0.57881057]
[1745467183632,0.28789358,605.64,603.95,0.57881057]
[1745467183931,0.28789358,605.64,603.96,0.57881057]
[1745467184228,1.25418113,605.97,603.92,1.652]
[1745467184433,1.25418113,605.97,603.93,0.57875709]
[1745467184633,1.25418113,605.97,603.92,1.652]
[1745467185333,0.287865,605.96,603.92,1.652]
[1745467187236,1.25418113,605.95,603.92,3.36]
[1745467188338,0.28787929,605.94,603.92,3.36]
[1745467189438,0.28787929,605.94,603.92,4.802]
[1745467190036,1.25418113,605.41,603.92,4.802]
[1745467191438,0.2879436,605.4,603.92,4.802]
[1745467193042,1.25418113,605.36,603.92,4.802]
[1745467193442,0.28794956,605.35,603.92,4.802]
[1745467195844,1.25418113,605.27,603.92,4.802]
[1745467197449,0.28796028,605.26,603.92,4.802]
[1745467199150,1.25418113,605.29,603.92,4.802]
[1745467199448,0.2879579,605.25,603.92,4.802]
[1745467199850,0.2879579,605.25,603.93,0.57913395]
[1745467200050,0.2879579,605.25,603.94,0.57913395]
[1745467200248,0.2879579,605.25,603.95,0.57913395]
[1745467200549,0.2879579,605.25,603.96,0.57913395]
[1745467200751,0.2879579,605.25,603.97,0.57913488]
[1745467201049,0.2879579,605.25,603.92,4.802]
[1745467201247,0.2879579,605.25,603.93,0.57913264]
[1745467201549,0.2879579,605.25,603.94,0.57913264]
[1745467201750,0.2879579,605.25,603.95,0.57913264]
[1745467201946,0.2879579,605.25,603.96,0.57913264]
[1745467202151,1.25418113,605.27,603.97,0.57913264]
[1745467202345,1.25418113,605.27,603.98,0.57913264]
[1745467202550,0.28795552,605.24,603.99,0.57913264]
[1745467202747,0.28795552,605.24,604.0,0.57913264]
[1745467202951,0.28795552,605.24,604.01,0.57913264]
[1745467203150,0.28795552,605.24,603.92,3.36]
[1745467203349,0.28795552,605.24,603.93,0.57927662]
[1745467203546,0.28795552,605.24,603.94,0.57927662]
[1745467203752,0.28795552,605.24,603.95,0.57927662]
[1745467203951,0.28795552,605.24,603.96,0.57927662]
[1745467204146,0.28795552,605.24,603.97,0.57927662]
[1745467205756,0.28795552,605.24,603.98,1.065]
[1745467206052,0.28795552,605.24,603.99,0.57927662]
[1745467206352,0.28795552,605.24,604.0,0.57938152]
[1745467206553,0.28795552,605.24,604.01,0.57938152]
[1745467206752,0.28795552,605.24,604.02,0.57938152]
[1745467207052,0.28795552,605.24,604.03,0.57938152]
[1745467207252,0.28795552,605.24,604.04,0.57938152]
[1745467207551,0.28795552,605.24,603.98,1.065]
[1745467207752,0.28795552,605.24,603.99,0.57943863]
[1745467207952,0.28795552,605.24,603.98,1.065]
[1745467208252,1.25418113,605.93,603.99,0.57943485]
[1745467208453,1.25418113,606.0,603.98,1.065]
[1745467208754,1.25418113,606.0,603.99,0.57948992]
[1745467208952,1.25418113,606.0,604.0,0.57948992]
[1745467209154,1.25418113,606.0,603.98,1.065]
[1745467209452,0.28785429,605.99,603.99,0.57953842]
[1745467209751,0.28785429,605.99,604.0,0.57953842]
[1745467209955,0.28785429,605.99,603.98,1.065]
[1745467210252,0.28785429,605.99,603.99,0.57953849]
[1745467210452,0.28785429,605.99,603.98,1.065]
[1745467210653,0.28785429,605.99,603.99,0.5796269]
[1745467210951,0.28785429,605.99,603.98,1.065]
[1745467211254,1.25418113,605.78,603.99,0.57963062]
[1745467211551,1.25418113,605.78,604.0,0.57963062]
[1745467211751,1.25418113,605.78,604.01,0.57963062]
[1745467211951,1.25418113,605.78,604.02,0.57963062]
[1745467212152,1.25418113,605.78,604.03,0.57963062]
[1745467212348,1.25418113,605.78,603.98,1.065]
[1745467212547,1.25418113,605.78,603.99,0.57982956]
[1745467212756,1.25418113,605.78,604.0,0.57982956]
[1745467212949,1.25418113,605.78,604.01,0.57982956]
[1745467213148,1.25418113,605.78,604.02,0.57982956]
[1745467213348,1.25418113,605.78,604.03,0.57982956]
[1745467213548,1.25418113,605.78,603.98,1.065]
[1745467213753,1.25418113,605.79,603.99,0.57993033]
[1745467213949,1.25418113,605.79,604.0,0.57993033]
[1745467214250,1.25418113,605.79,604.01,0.57993033]
[1745467214450,1.25418113,605.79,604.02,0.57993033]
[1745467214752,1.25418113,605.79,604.03,0.57993033]
[1745467214949,1.25418113,605.79,603.98,1.065]
[1745467215251,1.25418113,605.79,603.99,0.58007338]
[1745467215449,1.25418113,605.79,604.0,0.58007338]
[1745467215651,1.25418113,605.79,604.01,0.58007338]
[1745467215850,1.25418113,605.3,604.02,0.58007338]
[1745467216054,1.25418113,605.3,604.03,0.58007338]
[1745467216254,1.25418113,605.3,604.04,0.58007338]
[1745467216451,1.25418113,605.3,604.05,0.58007338]
[1745467216658,1.25418113,605.3,603.98,1.065]
[1745467216952,1.25418113,605.3,603.99,0.58033113]
[1745467217152,1.25418113,605.3,604.0,0.58033113]
[1745467217354,1.25418113,605.3,604.01,0.58033113]
[1745467217550,1.25418113,605.3,604.02,0.58033113]
[1745467217752,1.25418113,605.3,604.03,0.58033113]
[1745467217951,1.25418113,605.3,604.04,0.58033113]
[1745467218254,2.13384984,605.97,603.98,1.065]
[1745467218255,1.25418113,605.47,604.05,0.58033113]
[1745467218453,0.28792097,605.29,604.06,0.58033113]
[1745467218652,1.25418113,605.47,604.07,0.58033113]
[1745467218952,1.25418113,605.47,604.08,0.58033113]
[1745467219257,1.25418113,605.47,604.04,1.189]
[1745467219459,1.25418113,605.47,604.05,0.58064446]
[1745467219754,1.25418113,605.47,604.06,0.58064446]
[1745467219959,0.28788524,605.46,604.07,0.58064446]
[1745467220158,0.28788524,605.46,604.08,0.58064446]
[1745467220357,0.28788524,605.46,604.09,0.58064446]
[1745467220554,0.28788524,605.46,604.1,0.58064446]
[1745467220761,1.25418113,605.36,604.11,0.58064446]
[1745467220952,1.25418113,605.36,604.12,0.58064446]
[1745467221153,1.25418113,605.36,604.13,0.58064446]
[1745467221455,1.25418113,605.36,604.04,1.189]
[1745467221657,1.25418113,605.36,604.05,0.58070395]
[1745467221857,1.25418113,605.36,604.06,0.58070395]
[1745467222060,1.25418113,605.36,604.07,0.58070395]
[1745467222257,1.25418113,605.36,604.08,0.58070395]
[1745467222558,1.25418113,605.31,604.09,0.58070395]
[1745467222858,1.25418113,605.31,604.1,0.58070395]
[1745467223057,1.25418113,605.31,604.11,0.58070395]
[1745467223253,1.25418113,605.31,604.12,0.58070395]
[1745467223556,1.25418113,605.31,604.04,1.189]
[1745467223757,1.25418113,605.31,604.05,0.58093352]
[1745467224058,1.25418113,605.77,604.06,0.58093352]
[1745467224357,1.25418113,605.77,604.07,0.58093352]
[1745467224659,1.25418113,605.77,604.08,0.58093352]
[1745467224858,1.25418113,605.77,604.09,0.58093352]
[1745467225056,1.25418113,605.77,604.1,0.58093352]
[1745467225256,1.25418113,605.77,604.11,0.58093352]
[1745467225459,1.25418113,605.77,604.12,0.58093352]
[1745467225652,1.25418113,605.77,604.13,0.58093352]
[1745467225857,1.25418113,605.77,604.14,0.58093352]
[1745467226053,1.25418113,605.77,604.04,1.189]
[1745467226054,1.25418113,605.77,604.15,0.58093352]
[1745467226259,0.28784357,605.76,604.16,0.58093352]
[1745467226458,0.28784357,605.76,604.04,1.189]
[1745467226659,0.28784357,605.76,604.05,0.58103541]
[1745467226854,0.28784357,605.76,604.06,0.58103541]
[1745467227055,0.28784357,605.76,604.07,0.58103541]
[1745467227255,0.28784357,605.76,604.08,0.58103541]
[1745467227454,0.28784357,605.76,604.09,0.58103541]
[1745467227658,0.28784357,605.76,604.1,0.58103541]
[1745467227955,0.28784357,605.76,604.11,0.58103541]
[1745467228159,0.28784357,605.76,604.12,0.58103541]
[1745467228359,0.28784357,605.76,604.13,0.58103541]
[1745467228558,0.28784357,605.76,604.14,0.58103541]
[1745467228761,0.28784357,605.76,604.15,0.58103541]
[1745467229059,0.28784357,605.76,604.16,0.58103541]
[1745467229255,1.25418113,605.85,604.17,0.58103541]
[1745467229456,1.25418113,605.85,604.18,0.58103541]
[1745467229660,1.25418113,605.6,604.19,0.58103541]
[1745467229861,1.25418113,605.6,604.04,1.189]
[1745467230061,1.25418113,605.6,604.05,0.58086437]
[1745467230261,1.25418113,605.6,604.06,0.58086437]
[1745467230461,0.28787095,605.59,604.07,0.58086437]
[1745467230658,0.28787095,605.59,604.08,0.58086437]
[1745467230858,0.28787095,605.59,604.09,0.58086437]
[1745467231062,0.28787095,605.59,604.1,0.58086437]
[1745467231262,0.28787095,605.59,604.11,0.58086437]
[1745467231462,0.28787095,605.59,604.12,0.58086437]
[1745467231656,0.28787095,605.59,604.13,0.58086437]
[1745467231861,0.28787095,605.59,604.04,1.189]
[1745467231862,0.28787095,605.59,604.14,0.58086437]
[1745467232061,1.25418113,605.6,604.15,0.58086437]
[1745467232261,1.25418113,605.6,604.16,0.58086437]
[1745467232461,0.28783048,605.58,604.17,0.58086437]
[1745467232657,0.28783048,605.58,604.18,0.58086437]
[1745467232861,0.28783048,605.58,604.19,0.58086437]
[1745467233060,0.28783048,605.58,604.2,0.58086437]
[1745467233259,0.28783048,605.58,604.21,0.58086437]
[1745467233466,0.28783048,605.58,604.22,0.58086437]
[1745467233660,0.28783048,605.58,604.23,0.58086437]
[1745467233864,0.28783048,605.58,604.24,0.58086437]
[1745467234059,0.28783048,605.58,604.25,0.58086437]
[1745467234259,0.28783048,605.58,604.26,0.58086437]
[1745467234462,0.28783048,605.58,604.27,0.57997691]
[1745467234665,0.28783048,605.58,604.28,0.57997691]